Cogmind - Beta 13 @@@ ROGUE MODE // 2024.04.21 @ 00:52:06 Player: Cheeriohz Result: Destroyed by B-86 Titan with Matter Neutralizer Performance ------------- Evolutions (6) 3000 Regions Visited (26) 5200 Robots Destroyed (366) 1830 Value Destroyed (14150) 14150 Prototype IDs (42) 840 Alien Tech Used (3) 600 Bonus (7894) 7894 TOTAL SCORE: 33514 Bonus ------- High Alert Combat Kills 3689 Follower Combat Kills 3010 Entered Garrisons 600 Acquired ECA 300 Met Zhirov 300 Built Enhanced Grunts 300 Met R17 at Cetus 500 Friendly Fire -805 Cogmind --------- Core Integrity 0/1150 Matter 292/300 Energy 99/100 System Corruption 9% Temperature Hot (248) Movement Core (50) Location -3/Proximity Caves Parts ------- > --- POWER (2) -------- (None) > --- PROPULSION (6) --- (None) > --- UTILITY (8) ------ Improved Signal Interpreter Advanced Terrain Scan Processor 0b10 Decoder Chip [Generic] Advanced System Shield > --- WEAPON (4) ------- (None) > --- INVENTORY (5) ---- 0b10 Decoder Chip [Scout] Improved Medium Armor Plating Thermal Barrier Advanced Shield Generator System Shield Peak State ------------ > --- POWER ------------ Fusion Reactor Fusion Reactor > --- PROPULSION ------- Armored Medium Treads Armored Medium Treads Centrium Heavy Treads > --- UTILITY ---------- Experimental Heat Sink Improved Cooling System High-capacity Storage Unit Improved Armor Integrity Analyzer Centrium Medium Armor Plating Thermal Barrier Improved Hacking Suite Advanced System Shield > --- WEAPON ----------- Heavy Phase Cannon Heavy Phase Cannon Heavy Phase Cannon Kinetic Spear > --- INVENTORY -------- Light Fission Core Armored Medium Treads Centrium Heavy Treads Advanced Heat Sink Advanced Heat Sink Experimental Energy Well High-capacity Matter Pod Experimental Sensor Array Improved Signal Interpreter Encrypted Comm Array Advanced Launcher Guidance Computer Improved Medium Armor Plating Centrium Medium Armor Plating Advanced EM Disruption Field Advanced Shield Generator Advanced Shield Generator Long-range Tractor Beam [Rating: 129] Favorites ----------- Power Improved Deuterium Engine Engine Improved Deuterium Engine Power Core Reinforced Fission Core Reactor Quantum Reactor Propulsion Light Treads Treads Light Treads Leg Flexi-carbon Leg Wheel Centrium Wheel Utility High-capacity Storage Unit Device Experimental Heat Sink Storage High-capacity Storage Unit Processor Improved Signal Interpreter Hackware Makeshift Hacking Suite Protection Improved Light Armor Plating Weapon Gatling Laser Energy Gun Gatling Laser Energy Cannon Heavy Phase Cannon Ballistic Gun Minigun Ballistic Cannon Improved Light Cannon Launcher Heavy Rocket Launcher Impact Weapon Power Maul Slashing Weapon Scythe Piercing Weapon Kinetic Spear Build | -11 -10 -10 -9 -9 -9 -8 -8 -8 -8 -7 -7 -7 -7 -7 -7 -7 -6 -6 -6 -6 -5 -4 -4 -4 -4 -3 ------- Run | Yrd Mat Min Mat Min Exi Min Mat Gar Mat Fac Gar Fac Gar Fac Low Low Fac Ext Cet Arc Fac Fac Upp Upp Zhi Pro Slots Evolved 12 | . . . 2 . . . 2 . . 2 . . . . . . 2 . . . 2 2 . . . . Power . | . . . . . . . . . . . . . . . . . . . . . . . . . . . Propulsion 4 | . . . 1 . . . 1 . . . . . . . . . . . . . . 2 . . . . Utility 6 | . . . 1 . . . 1 . . 2 . . . . . . . . . . 2 . . . . . Weapon 2 | . . . . . . . . . . . . . . . . . 2 . . . . . . . . . Parts Attached 595 | 3 13 3 30 3 20 18 43 36 24 26 53 4 42 20 10 2 30 46 12 13 76 16 16 28 5 3 Power 43 | . 2 1 3 . 2 2 . . 2 1 3 . 4 2 1 . 4 5 2 1 4 2 . 2 . . Engine 27 | . 2 1 3 . 2 2 . . 2 1 2 . 1 2 1 . 1 5 . . . 1 . 1 . . Core 8 | . . . . . . . . . . . . . 1 . . . 3 . . . 2 1 . 1 . . Reactor 8 | . . . . . . . . . . . 1 . 2 . . . . . 2 1 2 . . . . . Propulsion 98 | 2 5 1 7 . 3 2 9 6 9 3 7 1 6 . . . 2 17 2 5 4 1 . 6 . . Treads 90 | . 5 1 7 . 3 2 9 6 9 3 7 1 6 . . . 2 17 2 5 4 . . 1 . . Leg 3 | . . . . . . . . . . . . . . . . . . . . . . . . 3 . . Wheel 5 | 2 . . . . . . . . . . . . . . . . . . . . . 1 . 2 . . Hover . | . . . . . . . . . . . . . . . . . . . . . . . . . . . Flight . | . . . . . . . . . . . . . . . . . . . . . . . . . . . Utility 230 | 1 2 . 6 1 8 6 19 3 3 15 15 1 10 10 5 2 12 12 5 3 54 7 13 13 2 2 Device 138 | 1 1 . . . 4 4 12 . . 9 9 1 4 5 4 1 9 3 2 3 41 4 9 10 . 2 Storage 11 | . 1 . 2 . 1 1 1 . . . . . . 1 . . . . 1 . 1 . 1 . 1 . Processor 15 | . . . 1 . 1 . . . . 1 1 . . 1 . . 2 1 . . 3 1 1 2 . . Hackware 5 | . . . . . . . . . 1 1 . . . . . . . . . . 3 . . . . . Protection 61 | . . . 3 1 2 1 6 3 2 4 5 . 6 3 1 1 1 8 2 . 6 2 2 1 1 . Artifact . | . . . . . . . . . . . . . . . . . . . . . . . . . . . Weapon 224 | . 4 1 14 2 7 8 15 27 10 7 28 2 22 8 4 . 12 12 3 4 14 6 3 7 3 1 Energy Gun 87 | . 2 1 5 . . . 3 11 8 6 14 2 5 . 1 . 7 5 1 2 2 5 2 4 1 . Energy Cannon 24 | . . . 1 . . . 1 2 . 1 1 . 2 2 1 . 2 . . 1 7 . 1 1 1 . Ballistic Gun 46 | . 2 . 7 1 6 3 2 1 . . 4 . 6 1 . . 3 5 2 . . 1 . 1 1 . Ballistic Cannon 7 | . . . . . . 2 4 . . . . . . . . . . . . . 1 . . . . . Launcher 26 | . . . 1 1 1 2 3 3 2 . 4 . 5 1 2 . . . . . . . . 1 . . Special Weapon . | . . . . . . . . . . . . . . . . . . . . . . . . . . . Impact Weapon 18 | . . . . . . . . . . . 5 . 4 4 . . . 2 . 1 2 . . . . . Slashing Weapon 14 | . . . . . . 1 2 10 . . . . . . . . . . . . . . . . . 1 Piercing Weapon 2 | . . . . . . . . . . . . . . . . . . . . . 2 . . . . . Special Melee Weapon . | . . . . . . . . . . . . . . . . . . . . . . . . . . . Unidentified Prototypes 29 | . . . 2 . 4 3 2 . . 1 1 . . . 1 . 1 . 5 . 4 1 . . 4 . Corrupted Parts 8 | . . . . . . . . . . . 1 . . . . . . 1 4 2 . . . . . . System Corruption 44 | . . . . . . . . . . . 14 . . . . . . 4 22 4 . . . . . . Parts Lost 77 | . . . 1 . 7 4 1 1 1 . 6 . 6 2 1 . 1 5 . 1 14 . 1 7 12 6 Power 10 | . . . . . 1 1 . . . . . . 1 . . . 1 . . . 3 . . 2 1 . Propulsion 24 | . . . . . 2 2 1 1 . . . . 2 . . . . 3 . 1 2 . 1 3 5 1 Utility 23 | . . . . . 2 1 . . 1 . 4 . 1 . . . . 2 . . 5 . . 2 2 3 Weapon 20 | . . . 1 . 2 . . . . . 2 . 2 2 1 . . . . . 4 . . . 4 2 Highest Loss Streak 12 | . . . 1 . 6 4 1 1 1 . 2 . 3 2 1 . 1 2 . 1 10 . 1 3 12 6 To Critical Strikes 8 | . . . . . 5 . . . . . . . . . . . . 1 . 1 . . . 1 . . Average Slot Usage (%) 91 | . 99 100 99 100 93 91 98 98 98 99 89 92 87 83 84 85 77 97 88 90 93 79 89 87 51 36 Engine 6 | . 14 14 11 11 11 10 9 9 8 7 5 7 1 2 7 14 9 9 3 . . . 5 3 . . Reactor 1 | . . . . . . . . . . . 1 . 5 4 . . . . 8 12 6 . . . . . Treads 22 | . 27 28 32 33 32 32 35 34 35 30 20 23 19 15 14 14 12 23 14 15 15 15 14 4 1 . Device 11 | . 14 14 8 . . 12 13 9 9 11 10 10 15 18 21 14 17 8 10 10 11 14 15 16 1 4 Storage 7 | . 14 14 11 11 11 11 9 9 9 7 7 7 7 7 7 7 6 6 6 6 5 5 6 5 5 2 Processor 8 | . . . 2 11 11 . . . . 7 11 15 15 15 14 14 12 13 12 12 11 4 5 5 15 15 Hackware 3 | . . . . . . . . . 9 14 9 7 1 . . . . . . . 11 5 5 5 5 5 Protection 6 | . . . 11 11 5 2 13 18 9 2 4 3 4 3 1 7 . 7 7 7 3 8 7 7 5 1 Energy Gun 7 | . 9 28 5 . . . . 9 17 14 9 8 4 . 1 7 7 12 10 10 4 10 9 7 1 . Energy Cannon 2 | . . . . . . . . 4 . . . . 1 6 4 . . . . 5 10 . . 2 4 2 Ballistic Gun 5 | . 18 . 15 21 21 12 1 . . . . . 4 . . . . 6 7 2 . 3 5 4 1 . Impact Weapon 2 | . . . . . . . . . . . 4 5 2 7 7 7 6 5 6 5 4 . . . . . Naked Turns . | . . . . . . . . . . . . . . . . . . . . . . . . . . . Heaviest Build 124 | 14 32 34 57 58 93 66 73 70 61 69 74 60 69 70 70 79 85 91 119 121 124 88 88 88 80 54 Greatest Support 160 | 20 40 42 67 65 65 64 86 80 82 88 150 115 150 150 150 150 150 150 160 160 134 134 134 107 60 10 Greatest Overweight (x) 14 | 1 . . . . 1 1 1 1 . . . . . . . . . 2 . 1 . . . 5 4 14 Average Overweight (x) . | . . . . . . . . . . . . . . . . . . . . . . . . 2 3 1 Largest Inventory Capacity 20 | 8 15 15 20 20 20 20 20 20 20 20 20 20 20 20 20 20 20 20 20 20 20 20 20 20 20 20 Average Capacity 19 | 8 10 15 19 20 20 20 20 20 20 20 20 20 20 20 20 20 20 20 20 20 20 20 20 20 19 13 Most Carried 20 | 8 13 15 20 20 20 20 20 20 20 20 20 20 20 20 20 20 20 20 20 20 20 20 20 20 20 8 Average Carried 18 | 6 8 14 19 19 16 19 19 19 19 19 19 20 19 19 19 20 19 19 19 19 19 16 19 19 10 6 Final Capacity 20 | 8 15 15 20 20 20 20 20 20 20 20 20 20 20 20 20 20 20 20 20 20 20 20 20 20 20 5 Final Carried 20 | 7 13 15 20 20 20 20 20 20 20 20 20 20 20 20 20 20 20 20 20 19 14 20 20 20 8 5 Class Distribution -------------------- 36% | Scavenger-Mutant 26% | Mutant 11% | Scavenger-Assassin 10% | Scavenger-Tank 7% | Scavenger-Gunner 5% | Scavenger-Skirmisher Dominant Class ---------------- Mutant | -10/Materials Mutant | -10/Mines Mutant | -9/Materials Mutant | -9/Mines Scavenger-Mutant | -9/Exiles Mutant | -8/Mines Mutant | -8/Materials Scavenger-Mutant | -8/Garrison Scavenger-Mutant | -8/Materials Scavenger-Skirmisher | -7/Factory Scavenger-Mutant | -7/Garrison Scavenger-Mutant | -7/Factory Scavenger-Mutant | -7/Garrison Scavenger-Mutant | -7/Factory Scavenger-Assassin | -7/Lower Caves Scavenger-Mutant | -7/Lower Caves Scavenger-Assassin | -6/Factory Scavenger-Gunner | -6/Extension Scavenger-Tank | -6/Cetus Scavenger-Gunner | -6/Archives Scavenger-Assassin | -5/Factory Scavenger-Tank | -4/Factory Scavenger-Tank | -4/Upper Caves Scavenger-Tank | -4/Upper Caves Mutant | -4/Zhirov Mutant | -3/Proximity Caves Resources | -11 -10 -10 -9 -9 -9 -8 -8 -8 -8 -7 -7 -7 -7 -7 -7 -7 -6 -6 -6 -6 -5 -4 -4 -4 -4 -3 ----------- Run | Yrd Mat Min Mat Min Exi Min Mat Gar Mat Fac Gar Fac Gar Fac Low Low Fac Ext Cet Arc Fac Fac Upp Upp Zhi Pro Matter Collected 11336 | 331 391 360 706 151 755 388 795 641 295 240 816 79 1150 180 318 100 457 819 276 178 918 173 243 465 81 30 Remotely 431 | . . . . . . . 146 . . . . . . . . . . . . . 147 . . 108 . 30 Salvage Created 16399 | 201 473 63 1504 68 474 171 840 1410 780 549 2105 44 1465 163 194 100 748 919 173 516 1550 315 690 884 . . Parts 817 | 15 31 3 89 11 52 22 62 65 44 23 79 . 48 10 13 2 25 33 6 24 81 26 17 36 . . Haulers Intercepted 18 | . 2 . 4 . . . 2 . 3 1 . . . . . . 1 . . . 4 1 . . . . Recyclers Shooed 8 | . . . 5 . . . . . 1 . . . . 1 . . . . . . 1 . . . . . Parts Field Recycled . | . . . . . . . . . . . . . . . . . . . . . . . . . . . Retrieved Matter . | . . . . . . . . . . . . . . . . . . . . . . . . . . . Parts Self-Destructed 70 | . . . . . . . . . . . . . . . 11 2 . . . . . . 21 31 . 5 Prevented 3 | . . . . . . . . . . . . . . . . . . . . . . . . 1 . 2 Kills | -11 -10 -10 -9 -9 -9 -8 -8 -8 -8 -7 -7 -7 -7 -7 -7 -7 -6 -6 -6 -6 -5 -4 -4 -4 -4 -3 ------- Run | Yrd Mat Min Mat Min Exi Min Mat Gar Mat Fac Gar Fac Gar Fac Low Low Fac Ext Cet Arc Fac Fac Upp Upp Zhi Pro Combat Hostiles Destroyed 280 | . 9 2 23 8 3 5 23 32 15 9 37 1 22 5 12 2 13 15 1 3 21 2 6 11 . . Melee 3 | . . . . . . . 1 . . . . . . . . . 1 . . . 1 . . . . . Guns 154 | . 9 2 21 4 1 1 1 15 12 9 23 1 11 . 3 2 9 13 1 2 2 2 6 4 . . Cannons 45 | . . . . . . . 15 8 . . . . . 2 . . . . . 1 16 . . 3 . . AOE 64 | . . . 2 4 2 4 6 9 3 . 12 . 8 2 8 . . . . . . . . 4 . . Classes Destroyed 25 | 2 6 2 1 . 1 . . 2 1 . 1 . 2 1 . . 1 1 . . 2 . . 2 . . Worker 7 | . . 1 . . . 2 . . 2 1 . . . . . . . . . . 1 . . . . . Builder 12 | . 1 . 1 . . . 3 . 2 . . . . 1 . . . 1 . . . 3 . . . . Tunneler 6 | 5 . . . . . . . . . . . . . . . . . . . . . 1 . . . . Hauler 18 | . 2 . 4 . . . 2 . 3 1 . . . . . . 1 . . . 4 1 . . . . Recycler 6 | 1 . . 4 . . . 1 . . . . . . . . . . . . . . . . . . . Minesweeper 1 | . . . . . . . . . . . . . . . . . . . . . . . . 1 . . Operator 12 | . 1 . 1 . . . . . . . . . . . . . . 2 . 8 . . . . . . Watcher 14 | . 1 . 1 . . . 2 1 1 1 . . . 1 . . 1 1 1 . 3 . . . . . Swarmer 76 | . 3 . 6 8 . 4 6 9 3 . 10 . 6 . 9 . 3 . . . 5 . . 4 . . Cutter 2 | . . . . . . . . . . . . . 2 . . . . . . . . . . . . . Saboteur 1 | . . . . . . . . . . . . . . . . . . . . . 1 . . . . . Grunt 89 | . 6 . 8 . . . 7 10 6 3 14 . 8 4 . 1 8 4 . . 5 . 3 2 . . Brawler 3 | . . . . . . . . . . . . . . . . . . 2 . . . . 1 . . . Duelist 6 | . . . . . . . . . 1 . . . 1 . 2 1 . . . . 1 . . . . . Protector 2 | . . . . . . . . . . . . . . 1 . . . . . . 1 . . . . . Sentry 59 | . . . 9 . . . 10 6 4 4 10 1 4 . 1 . . 4 . 3 2 . . 1 . . Specialist 4 | . . . . . . . . . . . 3 . . . . . . . . . 1 . . . . . Hunter 14 | . . . . . . . . 3 1 . . . 1 . . . 1 3 . . 1 . 2 2 . . Programmer 14 | . . . . . . . . 4 . 2 . . . . . . 1 . . . 3 2 . 2 . . Heavy 1 | . . . . . . . . . . . . . . . . . . . . . 1 . . . . . Behemoth 2 | . . . . . . . . . . . . . . . . . . 2 . . . . . . . . Cetus Guard 1 | . . . . . . . . . . . . . . . . . . . 1 . . . . . . . Zionite 8 | . . . . . 8 . . . . . . . . . . . . . . . . . . . . . Packrat 3 | . . . . . . . . . . . . . . . . . . . . . . . 3 . . . Samaritan 2 | . . . . . . . . . . . . . . . . . . . . . . . . 2 . . Assembled 4 | . . 2 . . 2 . . . . . . . . . . . . . . . . . . . . . Thug 1 | . . . . . . . . . . . . . . . . . . . 1 . . . . . . . Savage 1 | . . . . . . . . . . . . . 1 . . . . . . . . . . . . . Fireman 1 | . . . . . . . . . . . . . . . . . 1 . . . . . . . . . Best Kill Streak 9 | 3 3 2 3 4 4 5 7 4 8 3 9 1 4 5 4 2 5 4 2 4 6 2 3 4 . . Combat Bots Only 9 | . 3 1 3 4 2 4 5 4 5 3 9 1 4 4 4 2 5 4 1 1 5 2 3 4 . . Max Kills in Single Turn 7 | 1 1 1 2 2 1 4 4 3 7 1 3 1 3 2 2 1 2 1 1 1 2 2 1 2 . . Gunslinging 1 | . . . . . . . . . . . 1 . 1 . . . . . . . . 1 . . . . Exploded 3 | . . . 2 2 1 3 3 3 3 . 3 . 3 1 2 . . . . . . . . 2 . . Melee 1 | . . . . . . . 1 . . . . . . . . . 1 . . . 1 . . . . . Uniques/NPCs Destroyed 5 | . . . . . 4 1 . . . . . . . . . . . . . . . . . . . . 8R-AWN (-9/Exiles) EX-DEC (-9/Exiles) EX-HEX (-9/Exiles) EX-BIN (-9/Exiles) NK-0LA (-8/Mines) Combat | -11 -10 -10 -9 -9 -9 -8 -8 -8 -8 -7 -7 -7 -7 -7 -7 -7 -6 -6 -6 -6 -5 -4 -4 -4 -4 -3 -------- Run | Yrd Mat Min Mat Min Exi Min Mat Gar Mat Fac Gar Fac Gar Fac Low Low Fac Ext Cet Arc Fac Fac Upp Upp Zhi Pro Hostile Shots Fired 2228 | . 54 8 56 12 64 37 99 147 53 78 393 . 169 27 84 11 53 184 30 35 317 8 58 116 91 44 Missed 608 | . 19 1 13 4 11 6 32 43 22 27 121 . 60 7 31 3 12 56 5 10 47 . 16 32 18 12 Damage Taken 23786 | . 430 137 583 67 1016 641 975 1452 463 409 2118 29 1666 362 663 116 780 1892 391 743 4533 160 509 1430 1553 668 Core 3255 | . 62 . 97 . 107 88 93 181 40 52 225 . 126 . 106 10 21 251 14 278 430 . 10 109 529 426 Absorbed by Shields 1045 | . . . . . . . . . . 54 557 . . . . 36 . 36 137 140 27 . 58 . . . Reduced by Siege Mode 572 | . . . . . . . . . . . 196 . 13 . 25 . 16 . 34 133 136 . 19 . . . Redirected to Shielding 71 | . . . . . . . . 62 . . . . . . . . . . . . . . . . . 9 Ignored by Resistances 1758 | . . . . . . . 51 . . . 140 . . . . . . . 124 . 966 . 321 156 . . Regen/Repaired (Parts) 487 | . . . 133 . . . . . 66 33 . . . . . . . . . . 255 . . . . . Core Remaining (%) 51 | 100 . 75 . . . 27 . . 42 . . . . . . 25 . . . 33 57 . . . . . Volleys Fired 1046 | 27 41 6 77 12 80 20 58 105 34 24 117 2 126 20 21 6 5 39 29 51 77 4 16 39 8 2 Largest 4 | 2 2 2 2 2 2 2 2 2 2 2 2 2 2 1 1 1 3 4 2 3 3 3 3 3 3 1 Hottest 270 | 40 90 90 90 50 50 60 130 160 160 160 160 160 160 65 80 80 223 241 113 246 270 243 223 256 197 90 Shots Fired 1944 | 54 82 12 152 20 155 33 108 176 65 48 171 3 159 20 24 5 38 126 31 112 195 12 38 88 15 2 Gun 1384 | 54 82 12 151 16 152 29 6 92 62 48 110 3 147 . 6 5 37 126 31 65 19 12 38 72 9 . Cannon 496 | . . . . . . . 99 75 . . 54 . . 17 7 . 1 . . 47 176 . . 12 6 2 Launcher 64 | . . . 1 4 3 4 3 9 3 . 7 . 12 3 11 . . . . . . . . 4 . . Special . | . . . . . . . . . . . . . . . . . . . . . . . . . . . Kinetic 781 | 54 78 . 104 16 152 29 101 5 . . 8 . 101 . . . . 41 29 6 9 2 18 24 4 . Thermal 1035 | . . . . . . . 4 162 62 48 156 3 46 17 13 5 37 85 2 106 186 10 20 60 11 2 Explosive 64 | . . . 1 4 3 4 3 9 3 . 7 . 12 3 11 . . . . . . . . 4 . . Electromagnetic 64 | . 4 12 47 . . . . . . . . . . . . . 1 . . . . . . . . . Robot Hit Streak 52 | 8 15 4 11 9 12 8 16 10 17 18 37 3 52 11 9 15 15 37 15 14 12 7 19 9 15 1 Robot Miss Streak 8 | 3 3 3 5 2 2 2 4 5 6 5 7 2 5 1 2 . 8 6 1 4 4 2 2 4 . 1 Penetration Max 1 | . . . . . . . . . . . 1 . . . . . . . 1 . . . . . . . Secondary Targets 15 | . 1 . . . . . . 1 1 . 5 . 1 . . . . 4 . . . 1 1 . . . Max Gunslinging Chain 1 | . 1 . . . . . . 1 1 . 1 . 1 . . . . 1 . . . 1 1 . . . Autonomous 34 | . . . . . . . . . . . . . . . . . 34 . . . . . . . . . Shots Hit Robots 1436 | 36 56 9 105 12 112 22 80 112 54 40 156 3 134 14 15 5 42 104 27 73 113 13 33 53 12 1 Core Hits 843 | 7 25 5 54 10 40 12 37 63 50 38 115 3 99 14 21 8 26 81 13 28 45 9 13 23 3 1 Critical Kills 23 | . . . . 1 . . 2 . . . 2 . 4 1 1 . . . 3 . 2 1 4 2 . . Critical Parts Destroyed 25 | 1 1 . . . 2 3 . . . . 3 . 7 . . . . 1 5 1 . . 1 . . . Critical Strikes 67 | 1 1 . . 1 4 5 4 6 . . 6 . 11 1 1 . . 3 10 1 2 2 5 3 . . Burn 4 | . . . . . . . . 2 . . . . . . . . . 2 . . . . . . . . Meltdown 5 | . . . . . . . . . . . 1 . . 1 1 . . . . . 2 . . . . . Destroy 47 | 1 1 . . 1 4 5 2 . . . 4 . 10 . . . . . 10 1 . 1 5 2 . . Blast 2 | . . . . . . . 2 . . . . . . . . . . . . . . . . . . . Smash 3 | . . . . . . . . . . . 1 . 1 . . . . 1 . . . . . . . . Sever 4 | . . . . . . . . 4 . . . . . . . . . . . . . . . . . . Impale 2 | . . . . . . . . . . . . . . . . . . . . . . 1 . 1 . . Melee Attacks 229 | . . . . . . 2 11 45 . . 49 . 12 9 2 . 22 31 . . 13 18 5 10 . . Impact 135 | . . . . . . . . . . . 49 . 12 9 2 . 22 31 . . 10 . . . . . Slashing 58 | . . . . . . 2 11 45 . . . . . . . . . . . . . . . . . . Piercing 36 | . . . . . . . . . . . . . . . . . . . . . 3 18 5 10 . . Sneak Attacks 21 | . . . . . . 2 2 . . . 1 . . . . . 2 2 . . 1 4 3 4 . . Combat Hostiles . | . . . . . . . . . . . . . . . . . . . . . . . . . . . Follow-up Attacks . | . . . . . . . . . . . . . . . . . . . . . . . . . . . Damage Inflicted 41665 | 366 745 97 1992 528 1904 724 2375 3825 1541 1002 5558 43 3769 874 1066 165 1912 2603 261 1940 4193 580 1068 2163 332 39 Guns 21704 | 366 745 97 1770 186 1721 364 32 1394 1151 1002 2345 43 2498 . 107 165 1410 2473 261 1121 307 229 753 937 227 . Cannons 9145 | . . . . . . . 1409 1001 . . 1453 . . 265 83 . . . . 819 3688 . . 283 105 39 Explosions 6741 | . . . 215 342 183 233 593 781 390 . 1179 . 1061 558 876 . . . . . . . . 330 . . Melee 4038 | . . . . . . 127 341 649 . . 581 . 209 51 . . 502 130 . . 169 351 315 613 . . Ramming 37 | . . . 7 . . . . . . . . . 1 . . . . . . . 29 . . . . . Kinetic 9573 | 366 708 . 1214 186 1721 364 1387 . . . 160 . 1501 . . . . 710 194 75 231 37 326 287 106 . Thermal 20669 | . . . 83 . . . 54 2395 1151 1002 3638 43 997 265 190 165 1410 1763 67 1865 3764 192 427 933 226 39 Explosive 6658 | . . . 132 342 183 233 593 781 390 . 1179 . 1061 558 876 . . . . . . . . 330 . . Electromagnetic 690 | . 37 97 556 . . . . . . . . . . . . . . . . . . . . . . . Impact 1516 | . . . . . . . . . . . 581 . 209 51 . . 502 130 . . 43 . . . . . Slashing 1117 | . . . . . . 127 341 649 . . . . . . . . . . . . . . . . . . Piercing 1405 | . . . . . . . . . . . . . . . . . . . . . 126 351 315 613 . . Highest Corruption 31 | . . . . . . 9 . 1 1 3 14 9 14 15 15 15 . 5 27 31 3 2 2 2 9 9 Average Corruption 8 | . . . . . . 8 . 1 1 2 7 8 13 14 15 15 . 4 20 27 2 1 2 2 7 9 Corruption Purged 9 | . . . . . . . . . . . 9 . . . . . . . . . . . . . . . Corruption Blocked 19 | . . . . . . . . . . . . . . . . . . . . . 19 . . . . . Effects 438 | . . . . . . 29 . 6 3 9 84 7 84 43 38 2 . 11 17 28 14 3 12 17 19 12 Message Errors 99 | . . . . . . 5 . . . 1 21 . 20 10 5 . . 4 5 11 1 1 3 2 5 5 Matter Fused 93 | . . . . . . 6 . 1 1 . 20 5 16 6 10 . . 2 2 6 4 2 . 6 4 2 Heat Flow Errors 47 | . . . . . . 1 . 2 . . 7 . 9 8 6 1 . . 1 1 4 . 2 . 3 2 Energy Discharges 52 | . . . . . . 5 . 2 . 2 11 1 5 4 6 . . 2 . 3 2 . 2 3 2 2 Parts Rejected 2 | . . . . . . . . . . . 2 . . . . . . . . . . . . . . . Parts Fused 6 | . . . . . . . . . 1 1 1 . 2 1 . . . . . . . . . . . . Data Loss (minor) 60 | . . . . . . 5 . 1 1 1 11 1 18 7 3 . . 1 2 3 1 . 1 1 2 1 Data Loss (major) 28 | . . . . . . 2 . . . 1 5 . 4 5 4 . . 1 2 . . . . 4 . . Misfires 21 | . . . . . . 2 . . . 1 3 . 3 . 3 . . 1 2 . 2 . 2 1 1 . Alerts 12 | . . . . . . 2 . . . 1 3 . 2 2 1 . . . 1 . . . . . . . Weapon Failures 18 | . . . . . . 1 . . . 1 . . 5 . . 1 . . 2 4 . . 2 . 2 . Overload Shots . | . . . . . . . . . . . . . . . . . . . . . . . . . . . Overflow Damage 1487 | . . . 2 20 5 26 60 60 9 . 108 . 145 29 40 . 44 90 . 46 124 58 225 396 . . Projectiles 205 | . . . . . . . 12 55 . . 11 . . . . . . . . 46 81 . . . . . Explosions 254 | . . . 2 20 5 . 38 5 9 . 18 . 97 . 40 . . . . . . . . 20 . . Melee 1028 | . . . . . . 26 10 . . . 79 . 48 29 . . 44 90 . . 43 58 225 376 . . Knockbacks 22 | . . . . . . . 17 . . . . . . 1 . . 3 1 . . . . . . . . Impact 4 | . . . . . . . . . . . . . . 1 . . 2 1 . . . . . . . . Kinetic 16 | . . . . . . . 16 . . . . . . . . . . . . . . . . . . . Secondary 2 | . . . . . . . 1 . . . . . . . . . 1 . . . . . . . . . Self-Inflicted Damage 615 | . . . . . . 26 67 48 72 . 44 . 240 . 92 . . . . . . . . 26 . . Shots 15 | . . . . . . 1 1 1 2 . 2 . 4 . 3 . . . . . . . . 1 . . Rammed 5 | . . . 2 . . . . . . . . . 1 . . . . . . . 1 . . . . 1 Targets Rammed 5 | . . . 2 . . . . . . . . . 1 . . . . . . . 1 . . . . 1 Kicked . | . . . . . . . . . . . . . . . . . . . . . . . . . . . Crushed . | . . . . . . . . . . . . . . . . . . . . . . . . . . . Highest Temperature 718 | . 30 132 198 24 87 159 158 146 45 285 506 . 243 254 259 459 336 718 277 680 621 24 258 377 239 325 Average Temperature 102 | . 8 61 35 11 48 31 39 25 16 97 96 . 50 118 106 307 92 216 77 175 165 14 90 92 81 97 Received Heat Transfer 5702 | . 237 38 147 . . . 486 468 72 124 602 . 297 117 84 39 99 316 12 90 1539 . 249 135 39 512 Effects 83 | . . . . . . . . . . 2 2 . . . . 2 1 32 . 22 22 . . . . . Shutdowns 25 | . . . . . . . . . . . 1 . . . . 1 . 7 . 6 10 . . . . . Energy Bleed 13 | . . . . . . . . . . 2 . . . . . 1 . 3 . 4 3 . . . . . Interference 12 | . . . . . . . . . . . 1 . . . . . 1 7 . . 3 . . . . . Matter Decay 4 | . . . . . . . . . . . . . . . . . . 2 . 1 1 . . . . . Short Circuit 3 | . . . . . . . . . . . . . . . . . . 3 . . . . . . . . Damage (minor) 5 | . . . . . . . . . . . . . . . . . . 3 . 2 . . . . . . Damage (major) 17 | . . . . . . . . . . . . . . . . . . 6 . 7 4 . . . . . Damage (core) 4 | . . . . . . . . . . . . . . . . . . 1 . 2 1 . . . . . Siege Activations 30 | . . . . . . . . . . . 6 . 2 . 2 1 2 . 1 2 9 2 3 . . . Total Turns 523 | . . . . . . . . . . . 137 . 29 . 13 11 35 . 29 62 146 11 50 . . . Longest Duration 52 | . . . . . . . . . . . 45 . 22 . 7 11 29 . 29 49 52 7 34 . . . Robots Corrupted . | . . . . . . . . . . . . . . . . . . . . . . . . . . . Combat Hostiles . | . . . . . . . . . . . . . . . . . . . . . . . . . . . Parts Fried 14 | . . . 3 . . . . . . . 2 . . 3 . . 3 3 . . . . . . . . Impact Corruptions 14 | . . . . . . . . . . . 3 . 3 1 . . 2 3 . . 2 . . . . . Robots Melted 12 | . . . . . . . . . . . 3 . 1 1 1 . 2 2 . . 2 . . . . . Combat Hostiles 11 | . . . . . . . . . . . 2 . 1 1 1 . 2 2 . . 2 . . . . . Parts Melted 75 | . . . 1 . . . . 8 4 5 12 . 9 1 2 1 5 6 1 8 7 . 2 3 . . Heat Transferred 33137 | . . . 150 . . . 74 4075 2550 2200 6478 100 2250 257 361 375 1525 3890 74 2442 4033 259 592 1184 268 . Parts Sabotaged 2 | . . . . . . . . . . . . . . . . . . 2 . . . . . . . . Parts Stolen . | . . . . . . . . . . . . . . . . . . . . . . . . . . . Parts Stripped . | . . . . . . . . . . . . . . . . . . . . . . . . . . . Power Chain Reactions 2 | . . . 2 . . . . . . . . . . . . . . . . . . . . . . . Alert | -11 -10 -10 -9 -9 -9 -8 -8 -8 -8 -7 -7 -7 -7 -7 -7 -7 -6 -6 -6 -6 -5 -4 -4 -4 -4 -3 ------- Run | Yrd Mat Min Mat Min Exi Min Mat Gar Mat Fac Gar Fac Gar Fac Low Low Fac Ext Cet Arc Fac Fac Upp Upp Zhi Pro Peak Influence 2570 | 30 205 22 289 265 . 143 506 1765 1052 524 2509 1432 2570 1389 . . 599 602 250 408 1294 611 . . . . Initial 1348 | . 19 7 . 76 . . . 328 859 368 188 1316 1002 1348 . . 345 207 104 100 72 582 . . . . Average 729 | 13 61 8 145 195 . 50 250 1126 856 357 1265 1353 2073 1202 . . 429 356 181 282 1011 495 . . . . Maximum Alert Level 5 | . 1 . 1 1 . . 2 5 3 2 5 4 5 4 . . 2 2 1 2 4 2 . . . . Low Security (%) 23 | 100 87 100 60 46 . 100 48 . . . . . . . . . . 9 67 16 3 . . . . . Level 1 21 | . 12 . 39 53 . . 27 2 . 73 23 . . . . . 33 51 32 68 1 9 . . . . Level 2 14 | . . . . . . . 24 12 22 26 2 . . . . . 66 38 . 14 1 90 . . . . Level 3 12 | . . . . . . . . 25 77 . 14 . 4 9 . . . . . . 50 . . . . . Level 4 17 | . . . . . . . . 54 . . 24 100 12 90 . . . . . . 42 . . . . . Level 5 10 | . . . . . . . . 4 . . 34 . 82 . . . . . . . . . . . . . High Security . | . . . . . . . . . . . . . . . . . . . . . . . . . . . Max Security . | . . . . . . . . . . . . . . . . . . . . . . . . . . . Squads Dispatched 51 | . 3 . 1 . . . 3 . 4 4 . 1 . 4 . . 3 4 . . 21 3 . . . . Investigation 8 | . 1 . . . . . . . 1 1 . . . . . . 1 1 . . 3 . . . . . Extermination 9 | . . . . . . . . . . 3 . . . 2 . . 1 . . . 2 1 . . . . Reinforcement 18 | . 2 . 1 . . . . . 1 . . . . 1 . . . 2 . . 10 1 . . . . Assault 9 | . . . . . . . . . . . . . . 1 . . 1 1 . . 5 1 . . . . Garrison 7 | . . . . . . . 3 . 2 . . 1 . . . . . . . . 1 . . . . . Intercept . | . . . . . . . . . . . . . . . . . . . . . . . . . . . Searches Triggered . | . . . . . . . . . . . . . . . . . . . . . . . . . . . Construction Impeded 2 | . . . . . . . . . . . . . . 1 . . . . . . 1 . . . . . Haulers Reinforced 2 | . . . . . . . . . . . . . . . . . . . . . 2 . . . . . Active Scanning Responses . | . . . . . . . . . . . . . . . . . . . . . . . . . . . Cargo Convoy Interrupts 1 | . . . . . . . . . . . . . . . . . . . . . 1 . . . . . Stealth | -11 -10 -10 -9 -9 -9 -8 -8 -8 -8 -7 -7 -7 -7 -7 -7 -7 -6 -6 -6 -6 -5 -4 -4 -4 -4 -3 --------- Run | Yrd Mat Min Mat Min Exi Min Mat Gar Mat Fac Gar Fac Gar Fac Low Low Fac Ext Cet Arc Fac Fac Upp Upp Zhi Pro Distress Signals 17 | . 1 1 2 1 . . 5 . 1 . . . . . . . . 2 2 . 2 . . . . . Communications Jammed 24 | . . . . . . . . . . . . . 24 . . . . . . . . . . . . . Distress Signals 24 | . . . . . . . . . . . . . 24 . . . . . . . . . . . . . Times Spotted 501 | . 17 3 44 8 20 6 32 35 20 11 41 2 43 10 12 3 21 32 10 19 71 2 8 14 3 14 Peak Tracking Total 10 | . 5 1 6 4 10 4 6 5 6 4 6 1 8 5 4 3 5 6 5 1 7 2 4 6 3 9 Tactical Retreats 21 | . . . . . 3 2 2 1 1 . 2 . 4 . . . 2 . . . . . . 1 . 3 Traps | -11 -10 -10 -9 -9 -9 -8 -8 -8 -8 -7 -7 -7 -7 -7 -7 -7 -6 -6 -6 -6 -5 -4 -4 -4 -4 -3 ------- Run | Yrd Mat Min Mat Min Exi Min Mat Gar Mat Fac Gar Fac Gar Fac Low Low Fac Ext Cet Arc Fac Fac Upp Upp Zhi Pro Traps Triggered 15 | . 1 1 1 . . . 1 1 3 . . . 1 . . . . 1 . . 3 1 1 . . . Indirectly . | . . . . . . . . . . . . . . . . . . . . . . . . . . . Trap Hack Attempts . | . . . . . . . . . . . . . . . . . . . . . . . . . . . Triggered . | . . . . . . . . . . . . . . . . . . . . . . . . . . . Disarmed . | . . . . . . . . . . . . . . . . . . . . . . . . . . . Reprogrammed . | . . . . . . . . . . . . . . . . . . . . . . . . . . . Reused . | . . . . . . . . . . . . . . . . . . . . . . . . . . . Traps Extracted . | . . . . . . . . . . . . . . . . . . . . . . . . . . . Installed . | . . . . . . . . . . . . . . . . . . . . . . . . . . . Triggered 4 | . . . . . . . . . . . . . . . . . . . . . 2 . . 1 . 1 Machines | -11 -10 -10 -9 -9 -9 -8 -8 -8 -8 -7 -7 -7 -7 -7 -7 -7 -6 -6 -6 -6 -5 -4 -4 -4 -4 -3 ---------- Run | Yrd Mat Min Mat Min Exi Min Mat Gar Mat Fac Gar Fac Gar Fac Low Low Fac Ext Cet Arc Fac Fac Upp Upp Zhi Pro Machines Disabled 50 | . . . 1 1 11 1 1 2 3 . 6 . 9 . 1 . 1 4 . 3 4 1 . 1 . . Max in Single Turn 4 | . . . 1 1 1 1 1 1 2 . 1 . 4 . 1 . 1 1 . 1 1 1 . 1 . . Garrison Access 2 | . . . . . . . . . . . . . . . . . 1 . . . 1 . . . . . Garrison Relay 4 | . . . . . . . . . . . . . 4 . . . . . . . . . . . . . Phase Generator 1 | . . . . . . . . . . . . . 1 . . . . . . . . . . . . . Machines Repaired . | . . . . . . . . . . . . . . . . . . . . . . . . . . . Machines Dismantled . | . . . . . . . . . . . . . . . . . . . . . . . . . . . Machines Sabotaged . | . . . . . . . . . . . . . . . . . . . . . . . . . . . Overloaded Fab Kills . | . . . . . . . . . . . . . . . . . . . . . . . . . . . Hacking | -11 -10 -10 -9 -9 -9 -8 -8 -8 -8 -7 -7 -7 -7 -7 -7 -7 -6 -6 -6 -6 -5 -4 -4 -4 -4 -3 --------- Run | Yrd Mat Min Mat Min Exi Min Mat Gar Mat Fac Gar Fac Gar Fac Low Low Fac Ext Cet Arc Fac Fac Upp Upp Zhi Pro Machines Accessed 77 | . 6 1 9 . 1 . 4 4 5 6 3 1 3 5 . . 4 9 . . 10 1 . 1 4 . Terminals 51 | . 5 . 7 . . . 3 4 3 4 3 . 3 3 . . 3 9 . . 3 1 . . . . Fabricators 4 | . . . . . . . . . . . . . . 2 . . . . . . 2 . . . . . Repair Stations 6 | . 1 . 2 . . . . . 1 1 . . . . . . . . . . 1 . . . . . Recycling Units . | . . . . . . . . . . . . . . . . . . . . . . . . . . . Scanalyzers 2 | . . . . . . . . . . . . . . . . . . . . . 2 . . . . . Garrison Access 7 | . . . . . . . 1 . 1 1 . 1 . . . . 1 . . . 2 . . . . . Total Hacks 192 | . 16 1 20 . 1 . 11 9 23 15 4 1 5 9 . . 8 18 . . 30 3 . 1 17 . Successful 84 | . 6 1 12 . 1 . 3 1 8 9 2 1 2 3 . . 5 5 . . 6 1 . 1 17 . Failed 108 | . 10 . 8 . . . 8 8 15 6 2 . 3 6 . . 3 13 . . 24 2 . . . . Catastrophic 24 | . 2 . 2 . . . 2 3 3 . 1 . 2 . . . 1 3 . . 4 1 . . . . Database Lockouts . | . . . . . . . . . . . . . . . . . . . . . . . . . . . Manual 60 | . 9 . 9 . . . 8 . 15 3 . . . . 1 . 1 . 1 . 12 1 . . . . Terminals 124 | . 12 . 14 . . . 9 9 15 9 4 . 5 7 . . 6 18 . . 13 3 . . . . Fabricators 5 | . . . . . . . . . . . . . . 2 . . . . . . 3 . . . . . Repair Stations 19 | . 4 . 6 . . . . . 3 5 . . . . . . . . . . 1 . . . . . Recycling Units . | . . . . . . . . . . . . . . . . . . . . . . . . . . . Scanalyzers 4 | . . . . . . . . . . . . . . . . . . . . . 4 . . . . . Garrison Access 20 | . . . . . . . 2 . 5 1 . 1 . . . . 2 . . . 9 . . . . . Terminal Hacks 58 | . 5 1 5 . 1 . 2 1 3 3 2 . 2 1 . . 5 5 . . 3 1 . 1 17 . Record 8 | . . . . . 1 . . . . . . . . . . . 1 . . . . . . 1 5 . Part Schematic 4 | . . . . . . . . . . . . . . . . . . . . . . . . . 4 . Robot Analysis 8 | . 3 . 1 . . . . . . . . . . . . . . . . . . . . . 4 . Prototype ID Bank 7 | . . . 1 . . . 1 . . . . . . . . . 1 . . . . . . . 4 . Open Door 6 | . . 1 . . . . . . . . 1 . 1 . . . . 3 . . . . . . . . Branch Access Points 4 | . . . . . . . 1 . . 1 . . . . . . 1 . . . 1 . . . . . Emergency Access Points 2 | . . . . . . . . 1 . . 1 . . . . . . . . . . . . . . . Terminal Index 1 | . . . . . . . . . . 1 . . . . . . . . . . . . . . . . Alert Level 4 | . . . 1 . . . . . . . . . . 1 . . 1 . . . . 1 . . . . Unreport Threat 7 | . . . 1 . . . . . 3 . . . . . . . . 2 . . 1 . . . . . Locate Traps 3 | . 1 . . . . . . . . . . . . . . . 1 . . . 1 . . . . . Recall Investigation 1 | . 1 . . . . . . . . . . . . . . . . . . . . . . . . . Hauler Manifests 1 | . . . 1 . . . . . . . . . . . . . . . . . . . . . . . Registered Prototypes 1 | . . . . . . . . . . 1 . . . . . . . . . . . . . . . . Security Stations 1 | . . . . . . . . . . . . . 1 . . . . . . . . . . . . . Fabricator Hacks 3 | . . . . . . . . . . . . . . 2 . . . . . . 1 . . . . . Network Status 3 | . . . . . . . . . . . . . . 2 . . . . . . 1 . . . . . Repair Station Hacks 14 | . 1 . 6 . . . . . 3 4 . . . . . . . . . . . . . . . . Scan Component 8 | . 1 . 3 . . . . . 2 2 . . . . . . . . . . . . . . . . Repair 6 | . . . 3 . . . . . 1 2 . . . . . . . . . . . . . . . . Recycling Unit Hacks . | . . . . . . . . . . . . . . . . . . . . . . . . . . . Scanalyzer 2 | . . . . . . . . . . . . . . . . . . . . . 2 . . . . . Insert Component 2 | . . . . . . . . . . . . . . . . . . . . . 2 . . . . . Garrison Access Hacks 3 | . . . . . . . 1 . . 1 . 1 . . . . . . . . . . . . . . Unlock Access 3 | . . . . . . . 1 . . 1 . 1 . . . . . . . . . . . . . . Unauthorized Hacks 4 | . . . 1 . . . . . 2 1 . . . . . . . . . . . . . . . . Terminals 4 | . . . 1 . . . . . 2 1 . . . . . . . . . . . . . . . . Assimilate 1 | . . . 1 . . . . . . . . . . . . . . . . . . . . . . . Botnet 3 | . . . . . . . . . 2 1 . . . . . . . . . . . . . . . . Fabricators . | . . . . . . . . . . . . . . . . . . . . . . . . . . . Repair Stations . | . . . . . . . . . . . . . . . . . . . . . . . . . . . Recycling Units . | . . . . . . . . . . . . . . . . . . . . . . . . . . . Scanalyzers . | . . . . . . . . . . . . . . . . . . . . . . . . . . . Garrison Access . | . . . . . . . . . . . . . . . . . . . . . . . . . . . Data Cores Recovered . | . . . . . . . . . . . . . . . . . . . . . . . . . . . Used . | . . . . . . . . . . . . . . . . . . . . . . . . . . . Hacking Detections 60 | . 5 . 7 . . . 4 3 5 5 1 1 3 3 . . 4 8 . . 10 1 . . . . Full Trace Events 11 | . . . . . . . . 2 1 1 1 . 1 . . . 1 1 . . 3 . . . . . Feedback Events . | . . . . . . . . . . . . . . . . . . . . . . . . . . . Feedback Blocked . | . . . . . . . . . . . . . . . . . . . . . . . . . . . Robot Schematics Acquired . | . . . . . . . . . . . . . . . . . . . . . . . . . . . Robots Built . | . . . . . . . . . . . . . . . . . . . . . . . . . . . Authchips . | . . . . . . . . . . . . . . . . . . . . . . . . . . . Time . | . . . . . . . . . . . . . . . . . . . . . . . . . . . Total Robot Build Rating . | . . . . . . . . . . . . . . . . . . . . . . . . . . . Part Schematics Acquired 4 | . . . . . . . . . . . . . . . . . . . . . . . . . 4 . Parts Built . | . . . . . . . . . . . . . . . . . . . . . . . . . . . Authchips . | . . . . . . . . . . . . . . . . . . . . . . . . . . . Time . | . . . . . . . . . . . . . . . . . . . . . . . . . . . Total Part Build Rating . | . . . . . . . . . . . . . . . . . . . . . . . . . . . Parts Repaired 6 | . . . 3 . . . . . 1 2 . . . . . . . . . . . . . . . . Time 349 | . . . 114 . . . . . 38 197 . . . . . . . . . . . . . . . . Parts Recycled . | . . . . . . . . . . . . . . . . . . . . . . . . . . . Recycled Matter . | . . . . . . . . . . . . . . . . . . . . . . . . . . . Retrieved Matter . | . . . . . . . . . . . . . . . . . . . . . . . . . . . Retrieved Components . | . . . . . . . . . . . . . . . . . . . . . . . . . . . Parts Scanalyzed 1 | . . . . . . . . . . . . . . . . . . . . . 1 . . . . . Part Schematics Acquired . | . . . . . . . . . . . . . . . . . . . . . . . . . . . Parts Damaged . | . . . . . . . . . . . . . . . . . . . . . . . . . . . Bothacking | -11 -10 -10 -9 -9 -9 -8 -8 -8 -8 -7 -7 -7 -7 -7 -7 -7 -6 -6 -6 -6 -5 -4 -4 -4 -4 -3 ------------ Run | Yrd Mat Min Mat Min Exi Min Mat Gar Mat Fac Gar Fac Gar Fac Low Low Fac Ext Cet Arc Fac Fac Upp Upp Zhi Pro Used RIF Installer . | . . . . . . . . . . . . . . . . . . . . . . . . . . . Robots Hacked . | . . . . . . . . . . . . . . . . . . . . . . . . . . . Non-combat . | . . . . . . . . . . . . . . . . . . . . . . . . . . . Combat . | . . . . . . . . . . . . . . . . . . . . . . . . . . . Robot Hacks Applied . | . . . . . . . . . . . . . . . . . . . . . . . . . . . Relay Couplers Released 28 | . . . . . . . . 4 . . . . 15 . . . 2 . . . 7 . . . . . Machine Destruction 21 | . . . . . . . . . . . . . 15 . . . 2 . . . 4 . . . . . Programmers 7 | . . . . . . . . 4 . . . . . . . . . . . . 3 . . . . . Fabnet Peak Effective % . | . . . . . . . . . . . . . . . . . . . . . . . . . . . Robots Rewired 15 | . . . . . . . . . . . 7 . 2 . . . . 6 . . . . . . . . Allies Hacked 2 | . . . . . . . . . . . 1 . . 1 . . . . . . . . . . . . Hacks Repelled . | . . . . . . . . . . . . . . . . . . . . . . . . . . . Allies | -11 -10 -10 -9 -9 -9 -8 -8 -8 -8 -7 -7 -7 -7 -7 -7 -7 -6 -6 -6 -6 -5 -4 -4 -4 -4 -3 -------- Run | Yrd Mat Min Mat Min Exi Min Mat Gar Mat Fac Gar Fac Gar Fac Low Low Fac Ext Cet Arc Fac Fac Upp Upp Zhi Pro Total Allies 46 | . . . 1 3 . . . . . . 9 . 4 . . 2 . 22 5 . . . . . . . Largest Group 9 | . . . 1 3 2 . . . . . 9 9 7 3 . 1 1 7 6 4 4 . . . . . Highest-Rated Group 521 | . . . 10 40 32 . . . . . 313 313 264 144 . 165 16 341 521 384 384 . . . . . Highest-Rated Ally 165 | . . . 10 16 16 . . . . . 62 62 80 80 . 165 16 159 153 96 96 . . . . . Warlord Squad Rendezvous 8 | . . . . . . . . . . . . . . . . . 1 . . . 7 . . . . . Dakka 1 | . . . . . . . . . . . . . . . . . . . . . 1 . . . . . Infantry 2 | . . . . . . . . . . . . . . . . . . . . . 2 . . . . . Muscle 1 | . . . . . . . . . . . . . . . . . . . . . 1 . . . . . Geek 2 | . . . . . . . . . . . . . . . . . . . . . 2 . . . . . Pyro 1 | . . . . . . . . . . . . . . . . . 1 . . . . . . . . . Ghost 1 | . . . . . . . . . . . . . . . . . . . . . 1 . . . . . Total Orders 3 | . . . . . 1 . . . . . . . . . . . . . . 2 . . . . . . STAY 2 | . . . . . 1 . . . . . . . . . . . . . . 1 . . . . . . FOLLOW 1 | . . . . . . . . . . . . . . . . . . . . 1 . . . . . . Ally Attacks 390 | . . . . 16 2 . . . . . 4 22 45 17 . 2 1 124 33 12 112 . . . . . Total Damage 11966 | . . . . 181 1 . . . . . 160 619 1463 266 . 67 18 2637 954 509 5091 . . . . . Kills 86 | . . . . 2 . . . . . . 3 2 16 1 . . . 22 8 1 31 . . . . . Allies Corrupted 2 | . . . . . . . . . . . . . 1 1 . . . . . . . . . . . . Allies Melted 3 | . . . . . . . . . . . . . . 1 . . 1 . . . 1 . . . . . Intel | -11 -10 -10 -9 -9 -9 -8 -8 -8 -8 -7 -7 -7 -7 -7 -7 -7 -6 -6 -6 -6 -5 -4 -4 -4 -4 -3 ------- Run | Yrd Mat Min Mat Min Exi Min Mat Gar Mat Fac Gar Fac Gar Fac Low Low Fac Ext Cet Arc Fac Fac Upp Upp Zhi Pro Robot Analysis Total 8 | . 3 . 1 . . . . . . . . . . . . . . . . . . . . . 4 . Derelict Logs Recovered 7 | . . 1 . 1 . . . . . . . . . . 2 . . . . . . . . 3 . . Drone Launches . | . . . . . . . . . . . . . . . . . . . . . . . . . . . Drone Recoveries . | . . . . . . . . . . . . . . . . . . . . . . . . . . . Exploration | -11 -10 -10 -9 -9 -9 -8 -8 -8 -8 -7 -7 -7 -7 -7 -7 -7 -6 -6 -6 -6 -5 -4 -4 -4 -4 -3 ------------- Run | Yrd Mat Min Mat Min Exi Min Mat Gar Mat Fac Gar Fac Gar Fac Low Low Fac Ext Cet Arc Fac Fac Upp Upp Zhi Pro Turns Passed 31440 | 132 1342 825 2466 620 1745 966 1168 2165 630 1271 3416 208 1922 1103 872 25 1355 1821 377 537 2808 887 665 1204 556 354 Spaces Moved 15769 | 49 718 439 1296 376 865 567 526 989 268 594 1562 118 920 588 393 3 719 877 172 197 1401 443 324 598 367 400 Core 308 | . . . . . . . . . . . . . . . . . . . . . . . . . 4 304 Treads 14357 | . 703 439 1296 376 865 567 526 989 268 594 1562 118 920 588 393 3 719 877 172 197 1401 443 324 17 . . Legs 212 | 16 . . . . . . . . . . . . . . . . . . . . . . . 195 1 . Wheels 892 | 33 15 . . . . . . . . . . . . . . . . . . . . . . 386 362 96 Hover . | . . . . . . . . . . . . . . . . . . . . . . . . . . . Flight . | . . . . . . . . . . . . . . . . . . . . . . . . . . . Fastest Speed 50 | 80 80 152 145 155 155 150 148 162 155 160 160 160 160 160 160 160 160 160 160 160 160 166 165 112 50 50 Average Speed 157 | 100 158 157 150 155 158 152 153 171 157 160 160 160 160 160 160 160 160 166 160 168 165 166 165 164 137 83 Slowest Speed 750 | 190 160 160 155 155 240 230 233 243 162 160 160 160 160 160 160 160 160 320 160 240 166 166 166 330 190 750 Overloaded Moves . | . . . . . . . . . . . . . . . . . . . . . . . . . . . Propulsion Burnouts . | . . . . . . . . . . . . . . . . . . . . . . . . . . . Robots Hopped . | . . . . . . . . . . . . . . . . . . . . . . . . . . . Cave-ins Triggered . | . . . . . . . . . . . . . . . . . . . . . . . . . . . Teleports 1 | . . . . . . . . . . . . . . . . . . . . . . . . . 1 . Exploration Rate (%) 57 | 4 97 93 98 68 88 91 45 95 39 15 97 5 91 21 53 3 16 83 56 83 51 8 42 72 99 38 Regions Visited 26 Branch Regions 13 Pre-discovered Areas 8 | . . 1 . 1 1 . . . . . . . . . 1 . . . . . . . . 1 3 . Known Exits Taken 16 | . . . 1 . 1 . 1 . . 1 . 1 . 1 1 1 1 1 1 1 . 1 1 1 1 . Unknown Exits Taken 7 | 1 1 1 . 1 . 1 . . 1 . . . . . . . . . . . 1 . . . . . Scrap Searched 16 | . . 3 . 2 . 1 . . . . . . . . 2 . . . . . . . 3 3 . 2 Spaces Dug 91 | . . . . . . . 2 . . . 29 . 3 7 1 . 11 7 . 1 15 13 . 2 . . Terrain Destroyed 806 | . . . 14 33 9 43 61 79 38 . 60 . 124 26 95 . 22 7 2 14 69 13 8 88 . 1 Melee 60 | . . . . . . . 2 . . . 10 . . 6 1 . 11 7 . . 9 13 . 1 . . Projectile 142 | . . . . . . 7 4 6 . . . . 9 2 2 . 11 . 2 14 60 . 8 16 . 1 AOE 601 | . . . 14 33 9 34 55 73 38 . 50 . 114 18 92 . . . . . . . . 71 . . Terrain Rammed . | . . . . . . . . . . . . . . . . . . . . . . . . . . . Walls Destroyed . | . . . . . . . . . . . . . . . . . . . . . . . . . . . Machines Disabled . | . . . . . . . . . . . . . . . . . . . . . . . . . . . Actions | -11 -10 -10 -9 -9 -9 -8 -8 -8 -8 -7 -7 -7 -7 -7 -7 -7 -6 -6 -6 -6 -5 -4 -4 -4 -4 -3 --------- Run | Yrd Mat Min Mat Min Exi Min Mat Gar Mat Fac Gar Fac Gar Fac Low Low Fac Ext Cet Arc Fac Fac Upp Upp Zhi Pro Total 20136 | 83 847 564 1698 397 1101 632 755 1205 395 855 2215 137 1187 712 607 15 868 1086 250 308 1705 556 413 730 405 410 Wait 1788 | . 47 106 233 2 98 13 89 14 59 195 302 6 41 57 171 5 63 8 15 39 86 60 36 31 11 1 Move 15741 | 48 717 438 1295 375 864 566 525 988 267 593 1559 117 919 587 392 2 718 876 171 196 1400 442 323 597 366 400 Hop . | . . . . . . . . . . . . . . . . . . . . . . . . . . . Pick Up 175 | 1 12 5 24 2 16 4 6 2 1 4 15 3 10 3 4 . 6 6 6 2 13 10 5 10 3 2 Fast Attach 225 | 3 5 1 13 . 7 7 17 3 9 6 14 1 11 11 3 . 17 21 7 7 27 9 7 14 4 1 Attach 78 | . 1 . 4 . 8 3 3 . 1 2 10 . 5 2 3 . 7 5 . 2 9 6 . 2 3 2 Detach 59 | 2 . 1 2 . 8 2 3 . . . 8 . 2 1 1 . 10 6 . 1 6 4 1 . 1 . Swap 295 | . 7 2 13 3 5 8 23 33 14 18 29 3 26 7 5 2 6 20 5 4 40 1 9 12 . . Drop 340 | 2 17 5 35 3 15 7 20 13 10 13 24 5 18 14 5 . 14 31 17 6 33 2 11 15 4 1 Fire 1046 | 27 41 6 77 12 80 20 58 105 34 24 117 2 126 20 21 6 5 39 29 51 77 4 16 39 8 2 Melee 229 | . . . . . . 2 11 45 . . 49 . 12 9 2 . 22 31 . . 13 18 5 10 . . Ram 1 | . . . . . . . . . . . . . . . . . . . . . . . . . . 1 Kick . | . . . . . . . . . . . . . . . . . . . . . . . . . . . Crush 4 | . . . 2 . . . . . . . . . 1 . . . . . . . 1 . . . . . Escape Stasis 7 | . . . . . . . . . . . . . . . . . . 2 . . . . . . 5 . Rewire 148 | . . . . . . . . 2 . . 88 . 16 1 . . . 41 . . . . . . . . Trap . | . . . . . . . . . . . . . . . . . . . . . . . . . . . Miscellaneous . | . . . . . . . . . . . . . . . . . . . . . . . . . . . Route ------- -11/Scrapyard -10/Materials (discovered 4 exits: *Mat x3 / *Min) -10/Mines (discovered 2 exits: *Mat x2) -9/Materials (discovered 5 exits: *Mat x3 / *Min / [*Sto]) -9/Mines (discovered 3 exits: *Mat x2 / *Exi) -9/Exiles (discovered 2 exits: *Min x2) -8/Mines -8/Materials -8/Garrison (discovered 3 exits: *Mat x3) -8/Materials -7/Factory (discovered 5 exits: *Fac x2 / Low x2 / Gar) -7/Garrison (discovered 4 exits: *Fac x4) -7/Factory -7/Garrison (discovered 3 exits: *Fac x3) -7/Factory -7/Lower Caves -7/Lower Caves -6/Factory (discovered 5 exits: Fac / Low x2 / *Ext x2) -6/Extension (discovered 3 exits: *Fac x2 / *Cet) -6/Cetus (discovered 2 exits: *Fac / *Arc) -6/Archives (discovered 3 exits: *Fac / *Hub x2) -5/Factory (discovered 3 exits: *Fac / *Upp x2) -4/Factory -4/Upper Caves -4/Upper Caves (discovered 2 exits: [*Res] / *Zhi) -4/Zhirov -3/Proximity Caves History --------- Turn | Location | Event 1 | -11/Scrapyard | Discovered new exit (range 3) 133 | -11/Scrapyard | Entered Materials 319 | -10/Materials | Build established: Mutant 469 | -10/Materials | Discovered new exit (range 12) 592 | -10/Materials | Discovered new exit (range 12) 633 | -10/Materials | Discovered new exit (range 13) 1000 | -10/Materials | Discovered new exit (range 15) 1475 | -10/Materials | Entered Mines 1476 | -10/Mines | Assembled infested the area 1481 | -10/Mines | Assisted by a Guerilla fighting off Assembled 1646 | -10/Mines | Joined a pair of Derelicts in attacking an 0b10 outpost 1799 | -10/Mines | Learned location of Storage (-9) 1977 | -10/Mines | Discovered new exit (range 11) 2048 | -10/Mines | Found a hidden stash of uninstalled traps 2066 | -10/Mines | Discovered new exit (range 15) 2075 | -10/Mines | Met a Derelict who couldn't figure out how to use a Trap Extractor 2300 | -10/Mines | Entered Materials 2300 | -9/Materials | Evolved 2 slots: Propulsion x1, Utility x1 2301 | -9/Materials | Identified exit to Mines 2451 | -9/Materials | Discovered new exit (range 13) 2865 | -9/Materials | Discovered new exit (range 8) 3032 | -9/Materials | Repaired Adv. Treads 3366 | -9/Materials | Discovered new exit (range 10) 4421 | -9/Materials | Discovered new exit (range 8) 4604 | -9/Materials | Repaired Minigun 4679 | -9/Materials | Repaired Minigun 4766 | -9/Materials | Entered Mines 4766 | -9/Mines | Accompanied by 1 ally 4780 | -9/Mines | Discovered new exit (range 8) 4796 | -9/Mines | Met a Derelict bent on vengeance 4858 | -9/Mines | Found a damaged Exp. Sensor Array with a note attached 4862 | -9/Mines | Found Prototype Device 4948 | -9/Mines | Discovered new exit (range 6) 4959 | -9/Mines | Assisted by bots powering up and referring to "LRC-V3" 5378 | -9/Mines | Deemed a non-threat by the Exiles lab entrance 5378 | -9/Mines | Discovered new exit (range 5) 5386 | -9/Mines | Entered Exiles 5386 | -9/Exiles | Accompanied by 2 allies 5387 | -9/Exiles | Identified exit to Mines 5425 | -9/Exiles | Met 8R-AWN 5450 | -9/Exiles | Met EX-HEX 5518 | -9/Exiles | Met EX-DEC 5619 | -9/Exiles | Discovered exit to Mines (range 10) 6013 | -9/Exiles | Attacked by the Exiles 6155 | -9/Exiles | Core integrity fell below 50% 6193 | -9/Exiles | Destroyed 8R-AWN 6204 | -9/Exiles | Found Prototype Ballistic Gun 6204 | -9/Exiles | Identified 8R-AWN's Boregun 6208 | -9/Exiles | Found 8R-AWN's Boregun 6220 | -9/Exiles | Lost 6 parts (1p2n1u2w) 6505 | -9/Exiles | Build established: Scavenger-Mutant 6577 | -9/Exiles | Destroyed EX-DEC 6589 | -9/Exiles | Destroyed EX-HEX 6607 | -9/Exiles | Destroyed EX-BIN 6632 | -9/Exiles | Found Prototype Processor 6632 | -9/Exiles | Identified Exp. Core Analyzer 6645 | -9/Exiles | Found Prototype Device 6645 | -9/Exiles | Identified System Purifier 6655 | -9/Exiles | Found Deploy-a-Sentry 6976 | -9/Exiles | Learned location of Zion (-6) 7131 | -9/Exiles | Left Exiles lab with Deploy-a-Sentry 7131 | -9/Exiles | Entered Mines 7231 | -8/Mines | NK-0LA came to Exiles' defense 7280 | -8/Mines | Lost 4 parts (1p2n1u) 7555 | -8/Mines | Discovered new exit (range 12) 7864 | -8/Mines | Build established: Mutant 7885 | -8/Mines | Destroyed NK-0LA 7893 | -8/Mines | Found Prototype Device 7893 | -8/Mines | Identified Thermal Barrier 7896 | -8/Mines | Found Prototype Device 7896 | -8/Mines | Identified Adv. EM Disruption Field 8097 | -8/Mines | Entered Materials 8097 | -8/Materials | Evolved 2 slots: Propulsion x1, Utility x1 8098 | -8/Materials | Identified Exp. Sensor Array 9001 | -8/Materials | Garrison activated, responded to threat 9264 | -8/Materials | Identified exit to Garrison 9265 | -8/Materials | Entered Garrison 9371 | -8/Garrison | Triggered checkpoint 9537 | -8/Garrison | Build established: Scavenger-Mutant 9579 | -8/Garrison | Triggered checkpoint 9587 | -8/Garrison | Triggered checkpoint 9591 | -8/Garrison | Triggered checkpoint 9859 | -8/Garrison | Triggered checkpoint 9924 | -8/Garrison | Discovered new exit (range 13) 10015 | -8/Garrison | Triggered checkpoint 10095 | -8/Garrison | Triggered checkpoint 10490 | -8/Garrison | Discovered new exit (range 10) 10563 | -8/Garrison | Triggered checkpoint 10671 | -8/Garrison | Discovered new exit (range 13) 10831 | -8/Garrison | Triggered checkpoint 11430 | -8/Garrison | Entered Materials 11506 | -8/Materials | Repaired Deuterium Engine 11798 | -8/Materials | Core integrity fell below 50% 11944 | -8/Materials | Garrison activated, responded to threat 12013 | -8/Materials | Discovered new exit (range 16) 12060 | -8/Materials | Entered Factory 12060 | -7/Factory | Evolved 2 slots: Utility x2 12118 | -7/Factory | Identified exit to Lower Caves 12367 | -7/Factory | Repaired Exp. Sensor Array 12457 | -7/Factory | Repaired Exp. Heat Sink 12859 | -7/Factory | Discovered new exit (range 15) 12882 | -7/Factory | Identified exit to Factory 13051 | -7/Factory | Build established: Scavenger-Skirmisher 13232 | -7/Factory | Discovered exit to Factory (range 15) 13329 | -7/Factory | Identified exit to Garrison 13331 | -7/Factory | Entered Garrison 13351 | -7/Garrison | Triggered checkpoint 13469 | -7/Garrison | Build established: Scavenger-Mutant 13962 | -7/Garrison | System corruption reached 10% 14207 | -7/Garrison | Triggered checkpoint 14207 | -7/Garrison | Triggered checkpoint 14245 | -7/Garrison | Destroyed 9 combat bots 14509 | -7/Garrison | Triggered checkpoint 14646 | -7/Garrison | Discovered new exit (range 9) 14675 | -7/Garrison | Triggered checkpoint 14752 | -7/Garrison | Discovered new exit (range 3) 14755 | -7/Garrison | Identified exit to Factory 14864 | -7/Garrison | Triggered checkpoint 15015 | -7/Garrison | Triggered checkpoint 15223 | -7/Garrison | Discovered exit to Factory (range 13) 15397 | -7/Garrison | Triggered checkpoint 15532 | -7/Garrison | Discovered exit to Factory (range 12) 15719 | -7/Garrison | Triggered checkpoint 15733 | -7/Garrison | Found embedded Infiltrators 16312 | -7/Garrison | Attempted to access garrison exit controls, blocked by remote lockdown 16542 | -7/Garrison | Attempted to access garrison exit controls, blocked by remote lockdown 16747 | -7/Garrison | Entered Factory 16747 | -7/Factory | Accompanied by 9 allies 16891 | -7/Factory | Garrison activated, responded to threat 16942 | -7/Factory | Identified exit to Garrison 16955 | -7/Factory | Entered Garrison 16955 | -7/Garrison | Accompanied by 7 allies 17019 | -7/Garrison | Triggered checkpoint 17019 | -7/Garrison | Triggered checkpoint 17019 | -7/Garrison | Triggered checkpoint 17084 | -7/Garrison | Triggered checkpoint 17085 | -7/Garrison | Lost 5 allies 17211 | -7/Garrison | Discovered new exit (range 8) 17219 | -7/Garrison | Learned Factory security intel 17230 | -7/Garrison | Identified exit to Factory 17288 | -7/Garrison | Garrison Relay disabled 17288 | -7/Garrison | Garrison Relay disabled 17288 | -7/Garrison | Garrison Relay disabled 17324 | -7/Garrison | Lost 3 parts (1p1n1w) 17344 | -7/Garrison | Phase Generator disabled 17434 | -7/Garrison | Core integrity fell below 50% 17669 | -7/Garrison | Discovered exit to Factory (range 12) 18119 | -7/Garrison | Found embedded Infiltrators 18129 | -7/Garrison | Triggered checkpoint 18355 | -7/Garrison | Discovered exit to Factory (range 10) 18877 | -7/Garrison | Entered Factory 18877 | -7/Factory | Accompanied by 3 allies 19575 | -7/Factory | Build established: Scavenger-Assassin 19677 | -7/Factory | First assault squad dispatched 19948 | -7/Factory | Discovered exit to Lower Caves (range 11) 19980 | -7/Factory | Entered Lower Caves 19989 | -7/Lower Caves | Met a Warlord Commander 19990 | -7/Lower Caves | Learned location of Warlord (-5) 19991 | -7/Lower Caves | Warlord Commander delivered Encrypted Comm Array 20000 | -7/Lower Caves | Found Encrypted Comm Array 20041 | -7/Lower Caves | Learned 4 Factory zone layouts 20475 | -7/Lower Caves | Attracted the attention of an 0b10 checkpoint 20731 | -7/Lower Caves | Learned Factory terminal intel 20781 | -7/Lower Caves | Found Alien Artifact 20781 | -7/Lower Caves | Identified Core Expander 20781 | -7/Lower Caves | Installed Core Expander, added new Power slot 20819 | -7/Lower Caves | Discovered new exit (range 5) 20830 | -7/Lower Caves | Acquired the password to a Derelict Tinkerer's latest research 20841 | -7/Lower Caves | Found Prototype Special Weapon 20850 | -7/Lower Caves | Identified exit to Lower Caves 20852 | -7/Lower Caves | Entered another Lower Caves area 20861 | -7/Lower Caves | ME-RLN showed up to help 20863 | -7/Lower Caves | ME-RLN revealed a hidden path 20877 | -7/Lower Caves | Entered Factory 20877 | -6/Factory | Accompanied by 1 ally 20877 | -6/Factory | Evolved 2 slots: Weapon x2 20878 | -6/Factory | Identified exit to Factory 20879 | -6/Factory | Loaded intel: 26 terminal locations 21077 | -6/Factory | Joined by Warlord Pyro squad 22098 | -6/Factory | Identified exit to Lower Caves 22098 | -6/Factory | Identified exit to Extension 22232 | -6/Factory | Entered Extension 22288 | -6/Extension | Rescued a captive Derelict 22289 | -6/Extension | Rescued a captive Derelict 22326 | -6/Extension | Rescued a captive Derelict 22332 | -6/Extension | Rescued a captive Derelict 22343 | -6/Extension | Rescued a captive Derelict 22344 | -6/Extension | Rescued a captive Derelict 22459 | -6/Extension | Rescued a captive Derelict 22473 | -6/Extension | Rescued a captive Derelict 22582 | -6/Extension | First assault squad dispatched 22621 | -6/Extension | Build established: Scavenger-Tank 22657 | -6/Extension | Lost 6 allies 23002 | -6/Extension | Rescued a captive Derelict 23003 | -6/Extension | Rescued a captive Derelict 23055 | -6/Extension | Rescued a captive Derelict 23057 | -6/Extension | Rescued a captive Derelict 23111 | -6/Extension | Rescued a captive Derelict 23122 | -6/Extension | Build established: Scavenger-Gunner 23132 | -6/Extension | Rescued A7 23482 | -6/Extension | Spotted B-75 Beast 23496 | -6/Extension | Spotted B-75 Beast 23510 | -6/Extension | Destroyed B-75 Beast 23529 | -6/Extension | Destroyed B-75 Beast 23549 | -6/Extension | Lost 4 allies 23610 | -6/Extension | Discovered exit to Factory (range 4) 23650 | -6/Extension | Rescued a captive Derelict 23653 | -6/Extension | Rescued a captive Derelict 24001 | -6/Extension | Discovered exit to Factory (range 10) 24003 | -6/Extension | Discovered new exit (range 6) 24051 | -6/Extension | Identified exit to Cetus 24053 | -6/Extension | Entered Cetus 24053 | -6/Cetus | Accompanied by 6 allies (A7) 24058 | -6/Cetus | Acquired a Cetus Manufacturing Module code from A7 24079 | -6/Cetus | Spotted Cetus Guard 24079 | -6/Cetus | Spotted Cetus Guard 24081 | -6/Cetus | Allies destroyed Cetus Guard 24082 | -6/Cetus | Spotted Cetus Guard 24083 | -6/Cetus | Spotted Cetus Guard 24096 | -6/Cetus | Allies destroyed Cetus Guard 24101 | -6/Cetus | Allies destroyed Cetus Guard 24108 | -6/Cetus | Allies destroyed Cetus Guard 24124 | -6/Cetus | System corruption reached 10% 24130 | -6/Cetus | Lost 4 allies 24233 | -6/Cetus | Started Cetus Manufacturing Module 24252 | -6/Cetus | Discovered new exit (range 15) 24258 | -6/Cetus | Manufactured an Enhanced Grunt 24281 | -6/Cetus | Spotted Cetus Guard 24282 | -6/Cetus | Spotted Cetus Guard 24283 | -6/Cetus | Manufactured an Enhanced Grunt 24291 | -6/Cetus | Allies destroyed Cetus Guard 24291 | -6/Cetus | Spotted Cetus Guard 24299 | -6/Cetus | Spotted Cetus Guard 24303 | -6/Cetus | Allies destroyed Cetus Guard 24306 | -6/Cetus | Destroyed Cetus Guard 24308 | -6/Cetus | Manufactured an Enhanced Grunt 24308 | -6/Cetus | Allies destroyed Cetus Guard 24333 | -6/Cetus | Manufactured an Enhanced Grunt 24336 | -6/Cetus | Discovered exit to Factory (range 15) 24344 | -6/Cetus | Met Revision 17 24345 | -6/Cetus | Build established: Scavenger-Tank 24358 | -6/Cetus | Manufactured an Enhanced Grunt 24428 | -6/Cetus | Identified exit to Archives 24430 | -6/Cetus | Entered Archives 24430 | -6/Archives | Accompanied by 5 allies (A7) 24500 | -6/Archives | Core integrity fell below 50% 24593 | -6/Archives | Discovered new exit (range 16) 24617 | -6/Archives | Discovered new exit (range 16) 24640 | -6/Archives | Discovered exit to Factory (range 15) 24852 | -6/Archives | Build established: Scavenger-Gunner 24888 | -6/Archives | Identified exit to Hub_04(d) 24952 | -6/Archives | System corruption reached 30% 24967 | -6/Archives | Entered Factory 24967 | -5/Factory | Accompanied by 4 allies 24967 | -5/Factory | Evolved 2 slots: Utility x2 25058 | -5/Factory | Garrison activated, responded to threat 25356 | -5/Factory | Joined by Warlord Infantry squad 25427 | -5/Factory | Lost 3 allies 25444 | -5/Factory | Joined by Warlord Infantry squad 25567 | -5/Factory | First assault squad dispatched 25569 | -5/Factory | Lost 4 allies 25702 | -5/Factory | Joined by Warlord Muscle squad 25749 | -5/Factory | Discovered new exit (range 12) 25773 | -5/Factory | Cargo convoy interrupted 25913 | -5/Factory | Joined by Warlord Geek squad 26219 | -5/Factory | Build established: Scavenger-Assassin 26638 | -5/Factory | Lost 3 allies 26650 | -5/Factory | Joined by Warlord Ghost squad 26792 | -5/Factory | Joined by Warlord Geek squad 27157 | -5/Factory | Build established: Scavenger-Skirmisher 27334 | -5/Factory | Identified exit to Upper Caves 27362 | -5/Factory | Joined by Warlord Dakka squad 27461 | -5/Factory | Lost 3 allies 27738 | -5/Factory | Discovered new exit (range 13) 27775 | -5/Factory | Entered another Factory area 27775 | -4/Factory | Evolved 2 slots: Propulsion x2 27797 | -4/Factory | Lost 10 parts (2p2n4u2w) 27910 | -4/Factory | Discovered new exit (range 11) 27942 | -4/Factory | Identified exit to Upper Caves 28291 | -4/Factory | Build established: Scavenger-Tank 28525 | -4/Factory | First assault squad dispatched 28662 | -4/Factory | Entered Upper Caves 29223 | -4/Upper Caves | Discovered new exit (range 16) 29323 | -4/Upper Caves | Identified exit to Upper Caves 29327 | -4/Upper Caves | Entered another Upper Caves area 29405 | -4/Upper Caves | Discovered new exit (range 10) 29412 | -4/Upper Caves | Lost 3 parts (1p1n1u) 29425 | -4/Upper Caves | Learned location of Armory (-3) 29671 | -4/Upper Caves | Attracted the attention of an 0b10 checkpoint 29787 | -4/Upper Caves | Encountered a Warlord checkpoint 29860 | -4/Upper Caves | Found Alien Artifact 30426 | -4/Upper Caves | Learned location of 1 exit from Research 30493 | -4/Upper Caves | Discovered new exit (range 12) 30529 | -4/Upper Caves | Identified exit to Zhirov 30531 | -4/Upper Caves | Entered Zhirov 30531 | -4/Zhirov | Discovered new exit (range 3) 30557 | -4/Zhirov | Met Zhirov 30581 | -4/Zhirov | Learned location of Quarantine (-2) 30581 | -4/Zhirov | Learned location of Testing (-3) 30581 | -4/Zhirov | Learned location of Command (-1) 30593 | -4/Zhirov | Zhirov requested help retrieving the SGEMP Prototype 30614 | -4/Zhirov | Found Alien Artifact 30614 | -4/Zhirov | Identified Transdimensional Reconstructor 30614 | -4/Zhirov | Warped through subspace 30632 | -4/Zhirov | Attacked by Zhirov 30635 | -4/Zhirov | Identified Dimensional Node Initializer 30635 | -4/Zhirov | Initialized slip node 30635 | -4/Zhirov | Cloak Generator disabled 30656 | -4/Zhirov | Zhirov warped through subspace 30665 | -4/Zhirov | Zhirov detonated his lab 30666 | -4/Zhirov | Core integrity fell below 50% 30696 | -4/Zhirov | Lost 12 parts (1p5n2u4w) 30696 | -4/Zhirov | Lost 8 allies 30943 | -4/Zhirov | Build established: Mutant 31085 | -4/Zhirov | Identified exit to Proximity Caves 31087 | -4/Zhirov | Entered Proximity Caves 31089 | -3/Proximity Caves | Spotter reported a threat 31090 | -3/Proximity Caves | Spotter reported a threat 31282 | -3/Proximity Caves | Core integrity fell below 20% 31295 | -3/Proximity Caves | Unaware initiated a cargo recovery operation 31315 | -3/Proximity Caves | Lost 6 parts (1n3u2w) 31438 | -3/Proximity Caves | Spotted B-86 Titan 31439 | -3/Proximity Caves | Entered a huge 0b10 base via the front door 31441 | -3/Proximity Caves | Destroyed by B-86 Titan with Matter Neutralizer Last Messages --------------- 31244_ Wheel destroyed. 31247_ Neutron Cannon destroyed. 31260_ VNNJ |IP0LFPYM/WM6ILACW I WOAAH E88B 31260_ Lrn. Tractor Beam destroyed. 31272_ Structural Scanner destroyed. 31284_ Mak. Sword destroyed. 31284_ Slammed into G-67 Veteran. 31291_ Dropped Hcp. Storage Unit. 31292_ System corrupted: Heat flow error (+119). 31295_ ALERT: Cargo recovery in progress. Unregistered derelicts vacate Proximity Caves. 31317_ Searching scrap... 31317_ Found Energy Filter. 31317_ Found 18 Matter. 31328_ K1DQI65CBGL&WND9I QD/HN 31347_ System corrupted: Matter fused (-8). 31369_ System corrupted: Component data lost. 31410_ 2MJN#A|UV